[Event "14e Open International de Quenza"]
[Site "Quenza, France"]
[Date "2025.07.06"]
[Round "1.1"]
[White "Dardha, Daniel"]
[Black "Vachet, Laurent"]
[Result "1-0"]
[TimeControl "5min+3s"]
[WhiteElo "2627"]
[BlackElo "1791"]

1. e4 {[%clk 00:05:03]} {[%emt 00:00:02]} c5 {[%clk 00:05:03]} {[%emt
00:00:01]} 2. Nf3 {[%clk 00:05:03]} {[%emt 00:00:01]} d6 {[%clk 00:05:03]} 3.
d4 {[%clk 00:05:03]} {[%emt 00:00:02]} cxd4 {[%clk 00:05:03]} {[%emt 00:00:01]}
4. Nxd4 {[%clk 00:05:03]} Nf6 {[%clk 00:05:03]} {[%emt 00:00:01]} 5. Nc3 {[%clk
00:05:03]} {[%emt 00:00:01]} a6 {[%clk 00:05:03]} 6. Bd3 {[%clk 00:05:03]} e5
{[%clk 00:05:03]} {[%emt 00:00:03]} 7. Nde2 {[%clk 00:05:03]} {[%emt 00:00:02]}
Be6 {[%clk 00:05:03]} {[%emt 00:00:03]} 8. O-O {[%clk 00:05:03]} {[%emt
00:00:02]} Be7 {[%clk 00:05:03]} {[%emt 00:00:02]} 9. Ng3 {[%clk 00:04:56]}
{[%emt 00:00:10]} O-O {[%clk 00:04:48]} {[%emt 00:00:18]} 10. Nd5 {[%clk
00:04:56]} {[%emt 00:00:01]} Bxd5 {[%clk 00:03:57]} {[%emt 00:00:54]} 11. exd5
{[%clk 00:04:56]} {[%emt 00:00:01]} Nbd7 {[%clk 00:03:51]} {[%emt 00:00:09]} 12.
c4 {[%clk 00:04:56]} Nc5 {[%clk 00:03:46]} {[%emt 00:00:09]} 13. Bc2 {[%clk
00:04:56]} {[%emt 00:00:03]} b5 {[%clk 00:03:38]} {[%emt 00:00:11]} 14. b4
{[%clk 00:04:51]} {[%emt 00:00:08]} Ncd7 {[%clk 00:03:22]} {[%emt 00:00:18]} 15.
c5 {[%clk 00:04:51]} {[%emt 00:00:03]} Ne8 {[%clk 00:02:19]} {[%emt 00:01:07]}
16. c6 {[%clk 00:04:50]} {[%emt 00:00:04]} Nb6 {[%clk 00:02:17]} {[%emt
00:00:05]} 17. f4 {[%clk 00:04:42]} {[%emt 00:00:10]} Nc7 {[%clk 00:01:17]}
{[%emt 00:01:03]} 18. Be4 {[%clk 00:04:38]} {[%emt 00:00:07]} Bf6 {[%clk
00:00:59]} {[%emt 00:00:21]} 19. Nh5 {[%clk 00:04:33]} {[%emt 00:00:08]} Re8
{[%clk 00:00:41]} {[%emt 00:00:22]} 20. f5 {[%clk 00:04:30]} {[%emt 00:00:06]}
a5 {[%clk 00:00:32]} {[%emt 00:00:12]} 21. Qg4 {[%clk 00:04:07]} {[%emt
00:00:25]} Ncxd5 {[%clk 00:00:22]} {[%emt 00:00:13]} 22. Bh6 {[%clk 00:04:07]}
{[%emt 00:00:02]} Kf8 {[%clk 00:00:14]} {[%emt 00:00:12]} 23. Bxg7+ {[%clk
00:04:04]} {[%emt 00:00:06]} Bxg7 {[%clk 00:00:14]} {[%emt 00:00:02]} 24. Qxg7+
{[%clk 00:04:04]} {[%emt 00:00:02]} Ke7 {[%clk 00:00:14]} {[%emt 00:00:02]} 25.
f6+ {[%clk 00:04:04]} {[%emt 00:00:02]} Ke6 {[%clk 00:00:14]} {[%emt 00:00:02]}
26. Bf5# {[%emt 00:00:01]} 1-0

[Event "14e Open International de Quenza"]
[Site "Quenza, France"]
[Date "2025.07.06"]
[Round "1.2"]
[White "Bastiani, Camille"]
[Black "Bellahcene, Bilel"]
[Result "0-1"]
[TimeControl "5min+3s"]
[WhiteElo "1538"]
[BlackElo "2513"]

1. d4 {[%clk 00:05:03]} {[%emt 00:00:01]} Nf6 {[%clk 00:05:03]} 2. Bf4 {[%clk
00:05:03]} {[%emt 00:00:02]} b6 {[%clk 00:05:03]} {[%emt 00:00:02]} 3. Nf3
{[%clk 00:04:56]} {[%emt 00:00:10]} Bb7 {[%clk 00:05:03]} {[%emt 00:00:01]} 4.
e3 {[%clk 00:04:56]} {[%emt 00:00:02]} d6 {[%clk 00:05:03]} {[%emt 00:00:03]} 5.
Bd3 {[%clk 00:04:50]} {[%emt 00:00:08]} Nbd7 {[%clk 00:05:03]} {[%emt
00:00:02]} 6. Nbd2 {[%clk 00:04:50]} {[%emt 00:00:01]} g6 {[%clk 00:05:03]}
{[%emt 00:00:03]} 7. c4 {[%clk 00:04:26]} {[%emt 00:00:26]} Bg7 {[%clk
00:05:03]} {[%emt 00:00:02]} 8. O-O {[%clk 00:04:16]} {[%emt 00:00:13]} O-O
{[%clk 00:05:03]} {[%emt 00:00:03]} 9. Re1 {[%clk 00:03:52]} {[%emt 00:00:26]}
Re8 {[%clk 00:05:03]} {[%emt 00:00:03]} 10. e4 {[%clk 00:03:45]} {[%emt
00:00:11]} e5 {[%clk 00:05:03]} {[%emt 00:00:01]} 11. dxe5 {[%clk 00:03:45]}
{[%emt 00:00:02]} dxe5 {[%clk 00:05:03]} {[%emt 00:00:03]} 12. Bg3 {[%clk
00:03:42]} {[%emt 00:00:05]} Nh5 {[%clk 00:05:03]} {[%emt 00:00:02]} 13. Bh4
{[%clk 00:03:38]} {[%emt 00:00:06]} Bf6 {[%clk 00:05:03]} {[%emt 00:00:03]} 14.
Bxf6 {[%clk 00:03:37]} {[%emt 00:00:05]} Qxf6 {[%clk 00:05:03]} 15. Nb3 {[%clk
00:03:13]} {[%emt 00:00:28]} Rad8 {[%clk 00:04:59]} {[%emt 00:00:07]} 16. Qc2
{[%clk 00:03:06]} {[%emt 00:00:09]} Nf4 {[%clk 00:04:59]} {[%emt 00:00:03]} 17.
Kh1 {[%clk 00:02:46]} {[%emt 00:00:23]} a5 {[%clk 00:04:42]} {[%emt 00:00:20]}
18. Rad1 {[%clk 00:02:30]} {[%emt 00:00:19]} a4 {[%clk 00:04:39]} {[%emt
00:00:07]} 19. Nc1 {[%clk 00:02:11]} Nc5 {[%clk 00:04:39]} 20. a3 {[%clk
00:02:11]} Rd6 {[%clk 00:04:39]} 21. Bf1 {[%clk 00:02:11]} Bxe4 {[%clk
00:04:39]} 22. Rxe4 {[%clk 00:02:11]} Rxd1 {[%clk 00:04:39]} 0-1

[Event "14e Open International de Quenza"]
[Site "Quenza, France"]
[Date "2025.07.06"]
[Round "1.3"]
[White "Lagarde, Maxime"]
[Black "Bernardi, Nicolas"]
[Result "1-0"]
[TimeControl "5min+3s"]
[WhiteElo "2618"]
[BlackElo "1932"]

1. e4 {[%clk 00:05:03]} e5 {[%clk 00:05:03]} {[%emt 00:00:02]} 2. Nf3 {[%clk
00:05:03]} {[%emt 00:00:02]} Nc6 {[%clk 00:05:03]} 3. Bc4 {[%clk 00:05:03]} Nf6
{[%clk 00:05:03]} {[%emt 00:00:02]} 4. d3 {[%clk 00:05:03]} {[%emt 00:00:01]}
Bc5 {[%clk 00:05:03]} {[%emt 00:00:01]} 5. c3 {[%clk 00:05:03]} {[%emt
00:00:04]} d6 {[%clk 00:05:03]} {[%emt 00:00:01]} 6. a4 {[%clk 00:05:03]}
{[%emt 00:00:02]} a5 {[%clk 00:05:03]} {[%emt 00:00:01]} 7. Bg5 {[%clk
00:05:03]} {[%emt 00:00:02]} h6 {[%clk 00:05:03]} {[%emt 00:00:02]} 8. Bh4
{[%clk 00:05:03]} {[%emt 00:00:01]} Bg4 {[%clk 00:04:55]} {[%emt 00:00:12]} 9.
h3 {[%clk 00:05:00]} {[%emt 00:00:06]} Be6 {[%clk 00:04:45]} {[%emt 00:00:13]}
10. Nbd2 {[%clk 00:04:41]} {[%emt 00:00:22]} Qe7 {[%clk 00:04:42]} {[%emt
00:00:06]} 11. Bb5 {[%clk 00:04:31]} {[%emt 00:00:13]} O-O {[%clk 00:04:04]}
{[%emt 00:00:41]} 12. O-O {[%clk 00:04:30]} {[%emt 00:00:04]} Rad8 {[%clk
00:03:39]} {[%emt 00:00:29]} 13. Re1 {[%clk 00:04:23]} {[%emt 00:00:09]} Kh7
{[%clk 00:02:04]} {[%emt 00:01:38]} 14. Qc2 {[%clk 00:04:06]} {[%emt 00:00:20]}
g5 {[%clk 00:01:54]} {[%emt 00:00:13]} 15. Bg3 {[%clk 00:04:04]} {[%emt
00:00:04]} Nh5 {[%clk 00:01:54]} {[%emt 00:00:01]} 16. Kh2 {[%clk 00:03:27]}
{[%emt 00:00:40]} f5 {[%clk 00:01:13]} {[%emt 00:00:45]} 17. d4 {[%clk
00:03:27]} {[%emt 00:00:01]} f4 {[%clk 00:00:53]} {[%emt 00:00:22]} 18. dxc5
{[%clk 00:03:27]} {[%emt 00:00:01]} fxg3+ {[%clk 00:00:53]} {[%emt 00:00:01]}
19. fxg3 {[%clk 00:03:27]} Kg7 {[%clk 00:00:28]} {[%emt 00:00:28]} 20. g4
{[%clk 00:03:14]} {[%emt 00:00:16]} Nf6 {[%clk 00:00:23]} {[%emt 00:00:08]} 21.
Nf1 {[%clk 00:03:13]} {[%emt 00:00:04]} d5 {[%clk 00:00:21]} {[%emt 00:00:05]}
22. exd5 {[%clk 00:03:07]} {[%emt 00:00:09]} Rxd5 {[%clk 00:00:21]} {[%emt
00:00:02]} 23. Bxc6 {[%clk 00:03:03]} {[%emt 00:00:07]} bxc6 {[%clk 00:00:21]}
{[%emt 00:00:01]} 24. Nxe5 {[%clk 00:03:02]} {[%emt 00:00:04]} Qxc5 {[%clk
00:00:12]} {[%emt 00:00:12]} 25. Qg6+ {[%clk 00:02:58]} {[%emt 00:00:06]} Kh8
{[%clk 00:00:12]} 26. Qxh6+ {[%clk 00:02:58]} {[%emt 00:00:02]} Kg8 {[%clk
00:00:12]} {[%emt 00:00:02]} 27. Qxg5+ {[%clk 00:02:56]} {[%emt 00:00:05]} Kh7
{[%clk 00:00:11]} {[%emt 00:00:04]} 28. Ng3 {[%clk 00:02:44]} {[%emt 00:00:15]}
Qf2 {[%clk 00:00:04]} {[%emt 00:00:11]} 29. Qg6+ {[%clk 00:02:31]} {[%emt
00:00:16]} Kh8 {[%clk 00:00:04]} {[%emt 00:00:01]} 30. Rf1 {[%clk 00:02:27]}
{[%emt 00:00:07]} 1-0

[Event "14e Open International de Quenza"]
[Site "Quenza, France"]
[Date "2025.07.06"]
[Round "1.4"]
[White "Grimaldi Peetz, Anton"]
[Black "Fressinet, Laurent"]
[Result "0-1"]
[TimeControl "5min+3s"]
[WhiteElo "1727"]
[BlackElo "2605"]

1. e4 {[%clk 00:05:03]} {[%emt 00:18:08]} e5 {[%clk 00:05:03]} {[%emt
00:00:01]} 2. Nf3 {[%clk 00:05:03]} {[%emt 00:00:01]} Nc6 {[%clk 00:05:03]}
{[%emt 00:00:06]} 3. Bc4 {[%clk 00:05:03]} {[%emt 00:00:02]} Nf6 {[%clk
00:05:03]} {[%emt 00:00:02]} 4. d3 {[%clk 00:05:03]} {[%emt 00:00:02]} Bc5
{[%clk 00:05:03]} {[%emt 00:00:01]} 5. c3 {[%clk 00:05:01]} {[%emt 00:00:05]}
d6 {[%clk 00:05:03]} {[%emt 00:00:03]} 6. O-O {[%clk 00:05:00]} {[%emt
00:00:04]} a6 {[%clk 00:05:03]} {[%emt 00:00:01]} 7. Nbd2 {[%clk 00:04:58]}
{[%emt 00:00:04]} Ba7 {[%clk 00:05:03]} {[%emt 00:00:03]} 8. h3 {[%clk
00:04:58]} {[%emt 00:00:03]} h6 {[%clk 00:04:53]} {[%emt 00:00:14]} 9. Re1
{[%clk 00:04:51]} {[%emt 00:00:09]} g5 {[%clk 00:04:53]} {[%emt 00:00:01]} 10.
d4 {[%clk 00:04:48]} {[%emt 00:00:06]} g4 {[%clk 00:04:37]} {[%emt 00:00:19]}
11. hxg4 {[%clk 00:04:25]} {[%emt 00:00:25]} Nxg4 {[%clk 00:04:37]} {[%emt
00:00:02]} 12. Nf1 {[%clk 00:04:21]} {[%emt 00:00:08]} Qf6 {[%clk 00:04:29]}
{[%emt 00:00:12]} 13. Ne3 {[%clk 00:04:19]} {[%emt 00:00:05]} Nxe3 {[%clk
00:04:06]} {[%emt 00:00:26]} 14. Bxe3 {[%clk 00:04:19]} {[%emt 00:00:02]} Bg4
{[%clk 00:04:06]} {[%emt 00:00:01]} 15. Be2 {[%clk 00:04:16]} {[%emt 00:00:06]}
Bxf3 {[%clk 00:03:06]} {[%emt 00:01:03]} 16. Bxf3 {[%clk 00:04:16]} {[%emt
00:00:02]} exd4 {[%clk 00:03:06]} {[%emt 00:00:02]} 17. cxd4 {[%clk 00:04:06]}
{[%emt 00:00:13]} Nxd4 {[%clk 00:02:59]} {[%emt 00:00:10]} 18. Bxd4 {[%clk
00:03:48]} {[%emt 00:00:21]} Qxd4 {[%clk 00:02:59]} {[%emt 00:00:01]} 19. Qc2
{[%clk 00:03:31]} {[%emt 00:00:20]} O-O-O {[%clk 00:02:54]} {[%emt 00:00:07]}
20. Rad1 {[%clk 00:03:31]} {[%emt 00:00:04]} Qc5 {[%clk 00:02:40]} {[%emt
00:00:15]} 21. Qd3 {[%clk 00:02:48]} {[%emt 00:00:47]} Qxf2+ {[%clk 00:02:40]}
{[%emt 00:00:03]} 0-1

[Event "14e Open International de Quenza"]
[Site "Quenza, France"]
[Date "2025.07.06"]
[Round "1.5"]
[White "Hou, Yifan"]
[Black "Geronimi, Didier"]
[Result "1-0"]
[TimeControl "5min+3s"]
[WhiteElo "2633"]
[BlackElo "1677"]

1. Nf3 {[%clk 00:04:59]} {[%emt 00:00:03]} d6 {[%clk 00:05:03]} 2. d4 {[%clk
00:04:59]} {[%emt 00:00:03]} Nf6 {[%clk 00:05:03]} 3. c4 {[%clk 00:04:59]} g6
{[%clk 00:05:03]} {[%emt 00:00:02]} 4. Nc3 {[%clk 00:04:59]} Bg7 {[%clk
00:05:03]} 5. e4 {[%clk 00:04:59]} O-O {[%clk 00:05:03]} {[%emt 00:00:03]} 6.
h3 {[%clk 00:04:59]} c6 {[%clk 00:05:03]} {[%emt 00:00:02]} 7. Be3 {[%clk
00:04:59]} {[%emt 00:00:03]} Nbd7 {[%clk 00:05:03]} {[%emt 00:00:01]} 8. Qc2
{[%clk 00:04:57]} {[%emt 00:00:05]} Re8 {[%clk 00:05:00]} {[%emt 00:00:07]} 9.
Be2 {[%clk 00:04:55]} {[%emt 00:00:05]} e5 {[%clk 00:04:51]} {[%emt 00:00:13]}
10. d5 {[%clk 00:04:55]} {[%emt 00:00:01]} cxd5 {[%clk 00:04:51]} {[%emt
00:00:02]} 11. cxd5 {[%clk 00:04:55]} {[%emt 00:00:02]} a6 {[%clk 00:04:49]}
{[%emt 00:00:06]} 12. a4 {[%clk 00:04:52]} {[%emt 00:00:05]} Nh5 {[%clk
00:03:45]} {[%emt 00:01:06]} 13. g3 {[%clk 00:04:38]} {[%emt 00:00:17]} Nf8
{[%clk 00:03:45]} {[%emt 00:00:02]} 14. Nd2 {[%clk 00:04:36]} {[%emt 00:00:05]}
Nf6 {[%clk 00:03:31]} {[%emt 00:00:16]} 15. Nc4 {[%clk 00:04:32]} {[%emt
00:00:07]} N8d7 {[%clk 00:03:29]} {[%emt 00:00:05]} 16. Nxd6 {[%clk 00:04:32]}
{[%emt 00:00:03]} Re7 {[%clk 00:03:14]} {[%emt 00:00:19]} 17. O-O {[%clk
00:04:31]} {[%emt 00:00:04]} Nb6 {[%clk 00:03:10]} {[%emt 00:00:06]} 18. Nxc8
{[%clk 00:04:22]} {[%emt 00:00:13]} Rxc8 {[%clk 00:03:10]} 19. Qb3 {[%clk
00:04:21]} {[%emt 00:00:04]} Re8 {[%clk 00:02:44]} {[%emt 00:00:29]} 20. Bxb6
{[%clk 00:04:18]} {[%emt 00:00:06]} 1-0

[Event "14e Open International de Quenza"]
[Site "Quenza, France"]
[Date "2025.07.06"]
[Round "1.7"]
[White "Terrieux, Kevin"]
[Black "Gianni, Paul"]
[Result "1-0"]
[TimeControl "5min+3s"]
[WhiteElo "2394"]
[BlackElo "1434"]

1. e4 {[%clk 00:05:03]} {[%emt 00:00:02]} e5 {[%clk 00:05:03]} {[%emt
00:00:02]} 2. Nf3 {[%clk 00:05:01]} {[%emt 00:00:05]} Nc6 {[%clk 00:05:03]}
{[%emt 00:00:01]} 3. Bc4 {[%clk 00:05:00]} {[%emt 00:00:04]} Bc5 {[%clk
00:05:03]} {[%emt 00:00:02]} 4. c3 {[%clk 00:04:53]} {[%emt 00:00:10]} Nf6
{[%clk 00:05:03]} {[%emt 00:00:02]} 5. d4 {[%clk 00:04:51]} {[%emt 00:00:05]}
exd4 {[%clk 00:05:03]} {[%emt 00:00:02]} 6. cxd4 {[%clk 00:04:51]} {[%emt
00:00:02]} Bb4+ {[%clk 00:05:03]} {[%emt 00:00:01]} 7. Nbd2 {[%clk 00:04:40]}
{[%emt 00:00:13]} Nxe4 {[%clk 00:05:00]} {[%emt 00:00:07]} 8. d5 {[%clk
00:04:34]} {[%emt 00:00:10]} Bxd2+ {[%clk 00:04:33]} {[%emt 00:00:29]} 9. Bxd2
{[%clk 00:04:12]} {[%emt 00:00:25]} Nxd2 {[%clk 00:04:31]} {[%emt 00:00:05]} 10.
Qxd2 {[%clk 00:03:59]} {[%emt 00:00:16]} Ne7 {[%clk 00:04:22]} {[%emt
00:00:12]} 11. d6 {[%clk 00:03:44]} {[%emt 00:00:18]} Nc6 {[%clk 00:04:16]}
{[%emt 00:00:08]} 12. Qe3+ {[%clk 00:03:17]} {[%emt 00:00:30]} Kf8 {[%clk
00:04:00]} {[%emt 00:00:19]} 13. Ng5 {[%clk 00:03:04]} {[%emt 00:00:17]} Nd4
{[%clk 00:02:44]} {[%emt 00:01:18]} 14. O-O-O {[%clk 00:02:19]} {[%emt
00:00:48]} Nf5 {[%clk 00:02:14]} {[%emt 00:00:32]} 15. Qf4 {[%clk 00:02:06]}
{[%emt 00:00:17]} Nxd6 {[%clk 00:02:02]} {[%emt 00:00:15]} 16. Rxd6 {[%clk
00:01:57]} {[%emt 00:00:13]} Qe7 {[%clk 00:01:45]} {[%emt 00:00:19]} 17. Rdd1
{[%clk 00:01:28]} {[%emt 00:00:32]} f6 {[%clk 00:01:34]} {[%emt 00:00:15]} 18.
Nf7 {[%clk 00:01:28]} {[%emt 00:00:03]} Rg8 {[%emt 00:00:03]} 19. Rhe1 {[%emt
00:00:07]} Qc5 {[%clk 00:01:08]} {[%emt 00:00:17]} 20. Rd5 {[%clk 00:01:25]}
{[%emt 00:00:08]} Qc6 {[%clk 00:01:07]} {[%emt 00:00:03]} 21. Qe4 {[%clk
00:01:23]} {[%emt 00:00:05]} d6 {[%clk 00:01:05]} {[%emt 00:00:05]} 22. Qe7#
{[%emt 00:00:03]} 1-0

[Event "14e Open International de Quenza"]
[Site "Quenza, France"]
[Date "2025.07.06"]
[Round "1.8"]
[White "Venel, Alexandre"]
[Black "Sumets, Andrey"]
[Result "0-1"]
[TimeControl "5min+3s"]
[WhiteElo "1678"]
[BlackElo "2497"]

1. d4 {[%clk 00:05:03]} {[%emt 00:01:39]} Nf6 {[%clk 00:05:03]} {[%emt
00:00:02]} 2. c4 {[%clk 00:05:03]} {[%emt 00:00:02]} e6 {[%clk 00:05:03]} 3.
Nc3 {[%clk 00:05:03]} {[%emt 00:00:02]} Bb4 {[%clk 00:05:03]} {[%emt 00:00:01]}
4. Qc2 {[%clk 00:04:51]} {[%emt 00:00:16]} O-O {[%clk 00:04:57]} {[%emt
00:00:09]} 5. Bg5 {[%clk 00:04:51]} {[%emt 00:00:02]} c5 {[%clk 00:04:57]}
{[%emt 00:00:03]} 6. d5 {[%clk 00:04:41]} {[%emt 00:00:13]} exd5 {[%clk
00:04:52]} {[%emt 00:00:09]} 7. cxd5 {[%clk 00:04:41]} {[%emt 00:00:02]} d6
{[%clk 00:04:44]} {[%emt 00:00:11]} 8. e4 {[%clk 00:04:25]} {[%emt 00:00:18]}
Re8 {[%clk 00:04:31]} {[%emt 00:00:16]} 9. f3 {[%clk 00:03:34]} {[%emt
00:00:54]} h6 {[%clk 00:04:21]} {[%emt 00:00:13]} 10. Bxf6 {[%clk 00:03:16]}
{[%emt 00:00:21]} Qxf6 {[%clk 00:04:21]} {[%emt 00:00:03]} 11. Bb5 {[%clk
00:03:16]} {[%emt 00:00:02]} Nd7 {[%clk 00:04:14]} {[%emt 00:00:10]} 12. Nge2
{[%clk 00:03:16]} {[%emt 00:00:03]} a6 {[%clk 00:04:10]} {[%emt 00:00:07]} 13.
Bxd7 {[%clk 00:02:56]} {[%emt 00:00:23]} Bxd7 {[%clk 00:04:10]} {[%emt
00:00:02]} 14. O-O {[%clk 00:02:45]} {[%emt 00:00:14]} b5 {[%clk 00:04:03]}
{[%emt 00:00:10]} 15. a3 {[%clk 00:02:36]} {[%emt 00:00:12]} Ba5 {[%clk
00:04:03]} {[%emt 00:00:02]} 16. Rab1 {[%clk 00:02:18]} {[%emt 00:00:21]} h5
{[%clk 00:03:30]} {[%emt 00:00:36]} 17. b4 {[%clk 00:01:57]} {[%emt 00:00:24]}
Bb6 {[%clk 00:03:30]} {[%emt 00:00:02]} 18. Kh1 {[%clk 00:01:57]} {[%emt
00:00:01]} h4 {[%clk 00:03:22]} {[%emt 00:00:11]} 19. h3 {[%clk 00:01:37]}
{[%emt 00:00:23]} Rac8 {[%clk 00:03:22]} {[%emt 00:00:03]} 20. Qb2 {[%clk
00:01:30]} {[%emt 00:00:10]} Qh6 {[%clk 00:02:52]} {[%emt 00:00:32]} 21. Qc1
{[%clk 00:01:25]} {[%emt 00:00:09]} Qf6 {[%clk 00:02:34]} {[%emt 00:00:20]} 22.
Qf4 {[%clk 00:01:21]} {[%emt 00:00:07]} Qxf4 {[%clk 00:02:34]} {[%emt
00:00:04]} 23. Nxf4 {[%clk 00:01:21]} {[%emt 00:00:01]} cxb4 {[%clk 00:02:34]}
{[%emt 00:00:02]} 24. Na2 {[%clk 00:01:12]} {[%emt 00:00:12]} bxa3 {[%clk
00:02:32]} {[%emt 00:00:05]} 25. Nb4 {[%clk 00:01:12]} {[%emt 00:00:01]} a5
{[%clk 00:02:12]} {[%emt 00:00:23]} 26. Nc6 {[%clk 00:01:07]} {[%emt 00:00:07]}
b4 {[%clk 00:02:06]} {[%emt 00:00:09]} 27. Rfc1 {[%clk 00:01:07]} {[%emt
00:00:03]} Bxc6 {[%clk 00:02:06]} {[%emt 00:00:02]} 28. Rxc6 {[%clk 00:01:04]}
{[%emt 00:00:06]} Rxc6 {[%clk 00:02:06]} {[%emt 00:00:02]} 29. dxc6 {[%clk
00:01:04]} {[%emt 00:00:02]} a2 {[%clk 00:02:06]} {[%emt 00:00:02]} 30. Ra1
{[%clk 00:00:59]} {[%emt 00:00:09]} b3 {[%clk 00:02:06]} {[%emt 00:00:01]} 0-1

[Event "14e Open International de Quenza"]
[Site "Quenza, France"]
[Date "2025.07.06"]
[Round "1.9"]
[White "Toktomushev, Teimur"]
[Black "De Brito, Carlos"]
[Result "1-0"]
[TimeControl "5min+3s"]
[WhiteElo "2401"]
[BlackElo "1399"]

1. d4 {[%clk 00:05:03]} {[%emt 00:00:02]} e5 {[%clk 00:05:03]} {[%emt
00:00:04]} 2. dxe5 {[%clk 00:05:03]} {[%emt 00:00:03]} Nc6 {[%clk 00:05:03]}
{[%emt 00:00:02]} 3. Nf3 {[%clk 00:05:03]} {[%emt 00:00:02]} Qe7 {[%clk
00:05:03]} {[%emt 00:00:02]} 4. g3 {[%clk 00:04:25]} {[%emt 00:00:41]} b6
{[%clk 00:05:03]} {[%emt 00:00:02]} 5. Bg2 {[%clk 00:04:23]} {[%emt 00:00:04]}
Bb7 {[%clk 00:05:03]} {[%emt 00:00:03]} 6. O-O {[%clk 00:04:10]} {[%emt
00:00:16]} h6 {[%clk 00:04:52]} {[%emt 00:00:14]} 7. Nc3 {[%clk 00:04:01]}
{[%emt 00:00:12]} Nb4 {[%clk 00:04:20]} {[%emt 00:00:36]} 8. a3 {[%clk
00:03:59]} {[%emt 00:00:05]} Nc6 {[%clk 00:04:05]} {[%emt 00:00:17]} 9. Nd5
{[%clk 00:03:57]} {[%emt 00:00:05]} Qd8 {[%clk 00:04:00]} {[%emt 00:00:09]} 10.
Bf4 {[%clk 00:03:40]} {[%emt 00:00:20]} g5 {[%clk 00:03:55]} {[%emt 00:00:07]}
11. Be3 {[%clk 00:03:38]} {[%emt 00:00:05]} Nge7 {[%clk 00:03:43]} {[%emt
00:00:16]} 12. Nf6# {[%clk 00:03:38]} {[%emt 00:00:02]} 1-0

[Event "14e Open International de Quenza"]
[Site "Quenza, France"]
[Date "2025.07.06"]
[Round "1.10"]
[White "De Surrel, Henri"]
[Black "Skripchenko, Almira"]
[Result "0-1"]
[TimeControl "5min+3s"]
[WhiteElo "1399"]
[BlackElo "2359"]

1. d4 {[%clk 00:05:03]} {[%emt 00:17:33]} d5 {[%clk 00:05:03]} {[%emt
00:00:01]} 2. Nf3 {[%clk 00:04:59]} {[%emt 00:00:07]} c5 {[%clk 00:05:03]}
{[%emt 00:00:02]} 3. c3 {[%clk 00:04:58]} {[%emt 00:00:04]} Nc6 {[%clk
00:05:03]} {[%emt 00:00:04]} 4. Bf4 {[%clk 00:04:55]} {[%emt 00:00:06]} e6
{[%clk 00:05:00]} {[%emt 00:00:07]} 5. Nbd2 {[%clk 00:04:55]} {[%emt 00:00:02]}
Bd6 {[%clk 00:05:00]} {[%emt 00:00:04]} 6. Bg3 {[%clk 00:04:42]} {[%emt
00:00:16]} Nge7 {[%clk 00:04:11]} {[%emt 00:00:52]} 7. e3 {[%clk 00:04:26]}
{[%emt 00:00:19]} O-O {[%clk 00:04:11]} {[%emt 00:00:03]} 8. c4 {[%clk
00:04:21]} {[%emt 00:00:08]} cxd4 {[%clk 00:04:10]} {[%emt 00:00:04]} 9. exd4
{[%clk 00:04:19]} {[%emt 00:00:05]} dxc4 {[%clk 00:04:04]} {[%emt 00:00:09]} 10.
Bxc4 {[%clk 00:04:14]} {[%emt 00:00:08]} Bxg3 {[%clk 00:04:00]} {[%emt
00:00:07]} 11. fxg3 {[%clk 00:04:05]} {[%emt 00:00:12]} Nxd4 {[%clk 00:04:00]}
{[%emt 00:00:03]} 12. Nxd4 {[%clk 00:03:56]} {[%emt 00:00:11]} Qxd4 {[%clk
00:04:00]} {[%emt 00:00:03]} 13. Qc2 {[%clk 00:03:28]} {[%emt 00:00:31]} Qe3+
{[%clk 00:03:52]} {[%emt 00:00:10]} 14. Be2 {[%clk 00:03:19]} {[%emt 00:00:12]}
Nc6 {[%clk 00:03:52]} {[%emt 00:00:02]} 15. Qd3 {[%clk 00:03:06]} {[%emt
00:00:16]} Qc5 {[%clk 00:03:39]} {[%emt 00:00:16]} 16. Ne4 {[%clk 00:02:54]}
{[%emt 00:00:14]} Qb4+ {[%clk 00:03:38]} {[%emt 00:00:05]} 17. Nd2 {[%clk
00:02:43]} {[%emt 00:00:14]} Qxb2 {[%clk 00:03:37]} {[%emt 00:00:04]} 18. O-O
{[%clk 00:02:39]} {[%emt 00:00:06]} Rd8 {[%clk 00:03:27]} {[%emt 00:00:13]} 19.
Rfb1 {[%clk 00:01:52]} {[%emt 00:00:51]} Qxd2 {[%clk 00:03:24]} {[%emt
00:00:06]} 20. Qxd2 {[%clk 00:01:52]} {[%emt 00:00:02]} Rxd2 {[%clk 00:03:24]}
{[%emt 00:00:02]} 21. Bf3 {[%clk 00:01:50]} {[%emt 00:00:04]} e5 {[%clk
00:03:11]} {[%emt 00:00:16]} 22. Rd1 {[%clk 00:01:49]} {[%emt 00:00:04]} Rxd1+
{[%clk 00:03:11]} {[%emt 00:00:04]} 23. Rxd1 {[%clk 00:01:49]} Be6 {[%clk
00:03:10]} {[%emt 00:00:05]} 24. Rd2 {[%clk 00:01:49]} {[%emt 00:00:02]} Rc8
{[%clk 00:03:02]} {[%emt 00:00:11]} 25. h3 {[%clk 00:01:45]} {[%emt 00:00:08]}
f6 {[%clk 00:02:48]} {[%emt 00:00:17]} 26. a3 {[%clk 00:01:40]} {[%emt
00:00:07]} Kf7 {[%clk 00:02:48]} {[%emt 00:00:02]} 27. Kf2 {[%clk 00:01:35]}
{[%emt 00:00:08]} Rc7 {[%clk 00:02:46]} {[%emt 00:00:05]} 28. g4 {[%clk
00:01:32]} {[%emt 00:00:05]} Nd4 {[%clk 00:02:46]} {[%emt 00:00:02]} 29. Kg3
{[%clk 00:01:26]} {[%emt 00:00:09]} Rc3 {[%clk 00:02:43]} {[%emt 00:00:07]} 30.
Rf2 {[%clk 00:01:14]} {[%emt 00:00:13]} Rxa3 {[%clk 00:02:39]} {[%emt
00:00:08]} 31. Kh2 {[%clk 00:01:10]} {[%emt 00:00:06]} Nxf3+ {[%clk 00:02:39]}
{[%emt 00:00:03]} 32. Rxf3 {[%clk 00:01:10]} {[%emt 00:00:02]} Rxf3 {[%clk
00:02:39]} {[%emt 00:00:02]} 33. gxf3 {[%clk 00:01:09]} {[%emt 00:00:04]} a5
{[%clk 00:02:39]} 0-1